bitfinex-derivatives/quotes_SOLF0:USTF0_20240924
["timestamp","ask_amount","ask_price","bid_price","bid_amount"]
[1727145040482,1.3118,145.2,145.09,14.89]
[1727145040780,1.3118,145.2,145.1,1.3861]
[1727145040781,14.89,145.19,145.1,1.3861]
[1727145041281,14.89,145.17,145.1,1.3861]
[1727145042277,3.4449,145.15,145.12,3.4454]
[1727145042477,14.89,145.17,145.1,1.3861]
[1727145042681,14.89,145.13,145.06,1.3353]
[1727145042878,3.51203199,145.12,145.06,1.3353]
[1727145043081,14.89,145.13,145.06,1.3353]
[1727145043583,18.3354,145.13,145.1,3.4459]
[1727145045188,3.4454,145.13,145.1,3.4459]
[1727145047587,4.76270332,145.2,145.13,3.4452]
[1727145047886,14.89,145.17,145.08,14.89]
[1727145048388,3.445,145.15,145.12,3.4455]
[1727145052182,8.20650332,145.2,145.17,3.4443]
[1727145052383,3.45090332,145.2,145.17,3.4443]
[1727145052691,14.89,145.24,145.16,14.89]
[1727145052890,3.50021207,145.24,145.16,14.89]
[1727145053085,2.756,145.25,145.16,14.89]
[1727145053788,6.28448686,145.25,145.16,14.89]
[1727145053995,3.4431,145.23,145.16,14.89]
[1727145054188,3.37467414,145.22,145.16,14.89]
[1727145054393,224.0,145.33,145.18,14.89]
[1727145054688,14.89,145.27,145.18,14.89]
[1727145055489,18.27432296,145.27,145.18,14.89]
[1727145055887,3.4427,145.24,145.2,3.4435]
[1727145059096,3.443,145.23,145.2,3.4435]
[1727145061097,14.89,145.22,145.14,1.3427]
[1727145061791,3.4437,145.2,145.16,3.4444]
[1727145062095,14.89,145.22,145.16,3.4444]
[1727145062485,14.89,145.22,145.14,16.2327]
[1727145062686,14.89,145.24,145.15,14.89]
[1727145062902,3.443,145.23,145.15,14.89]
[1727145063199,3.39087588,145.22,145.19,3.4437]
[1727145063497,3.443,145.23,145.16,2.7862]
[1727145063901,3.42855979,145.22,145.16,2.7862]
[1727145064093,3.443,145.23,145.16,2.7862]
[1727145064597,6.90223347,145.23,145.16,2.7862]
[1727145065891,6.90223347,145.23,145.2,3.4435]
[1727145067497,3.45923347,145.23,145.16,2.7862]
[1727145067801,14.89,145.24,145.16,2.7862]
[1727145068001,3.4433,145.22,145.18,3.444]
[1727145068592,18.28410021,145.24,145.16,2.7862]
[1727145068792,18.28410021,145.24,145.17,3.4443]
[1727145069793,14.89,145.22,145.14,16.2327]
[1727145069999,14.89,145.2,145.12,1.3249]
[1727145070189,14.89,145.2,145.15,3.4446]
[1727145070591,3.4438,145.2,145.17,3.4443]
[1727145070798,6.882,145.32,145.16,14.89]
[1727145070996,14.89,145.26,145.16,14.89]
[1727145071198,3.4429,145.23,145.19,3.4439]
[1727145071793,3.4432,145.22,145.19,3.4439]
[1727145072197,18.33340235,145.26,145.2,3.4436]
[1727145072590,3.4431,145.23,145.2,3.4436]
[1727145073402,15.869945,145.3,145.2,14.89]
[1727145073704,19.39676945,145.3,145.21,2.6367]
[1727145074404,3.4421,145.27,145.23,3.4428]
[1727145076395,19.39676945,145.3,145.21,2.6367]
[1727145076596,4.50676945,145.3,145.22,14.89]
[1727145076898,4.50676945,145.3,145.22,16.313]
[1727145077699,4.50676945,145.3,145.24,14.89]
[1727145077999,0.979945,145.3,145.28,3.4416]
[1727145079111,0.979945,145.3,145.29,3.4415]
[1727145080609,0.979945,145.3,145.28,3.4417]
[1727145081808,0.979945,145.3,145.29,3.4415]
[1727145082313,3.4406,145.33,145.3,3.4412]
[1727145082902,6.82458024,145.34,145.3,3.4412]
[1727145083215,3.42029185,145.43,145.32,14.89]
[1727145083516,0.979945,145.45,145.37,14.89]
[1727145083813,0.979945,145.45,145.41,3.4385]
[1727145084208,0.979945,145.45,145.39,14.89]
[1727145084508,4.49040755,145.45,145.38,1.3171]
[1727145084704,0.979945,145.45,145.38,1.3171]
[1727145085310,0.979945,145.45,145.38,4.7565]
[1727145085311,3.4384,145.43,145.38,4.7565]
[1727145085510,3.52732654,145.44,145.38,1.3171]
[1727145085700,3.4397,145.37,145.32,4.7577]
[1727145085902,14.89,145.4,145.32,1.3171]
[1727145086313,14.89,145.4,145.34,3.4403]
[1727145086914,3.4392,145.39,145.35,3.44]
[1727145087213,14.89,145.42,145.33,14.89]
[1727145087413,1.408,145.43,145.35,14.89]
[1727145087610,3.4386,145.42,145.38,3.4393]
[1727145087804,0.979945,145.45,145.37,14.89]
[1727145088409,3.4382,145.43,145.38,3.4393]
[1727145088608,3.4382,145.43,145.37,14.89]
[1727145089518,3.4382,145.43,145.39,3.4391]
[1727145089715,3.4382,145.43,145.37,14.89]
[1727145090319,3.4382,145.43,145.38,3.4392]
[1727145090817,3.438,145.44,145.37,14.89]
[1727145091511,3.438,145.44,145.39,3.439]
[1727145091819,3.4382,145.43,145.39,3.439]
[1727145094320,4.39760987,145.45,145.41,3.4386]
[1727145095017,3.438,145.44,145.41,3.4386]
[1727145095325,4.39760987,145.45,145.42,3.4384]
[1727145095526,4.39760987,145.45,145.39,14.89]
[1727145095527,0.979945,145.45,145.39,14.89]
[1727145095816,0.979945,145.45,145.39,3.4391]
[1727145096720,0.979945,145.45,145.41,3.4386]
[1727145097821,4.417845,145.45,145.41,3.4386]
[1727145098223,15.869945,145.45,145.29,6.8827]
[1727145098435,15.869945,145.45,145.35,16.1926]
[1727145098719,3.4383,145.43,145.39,3.4391]
[1727145100912,0.979945,145.45,145.42,3.4384]
[1727145101222,0.979945,145.45,145.39,14.89]
[1727145101614,0.979945,145.45,145.4,3.4389]
[1727145102015,0.979945,145.45,145.39,14.89]
[1727145106723,0.979945,145.45,145.35,1.3026]
[1727145106724,14.89,145.44,145.35,1.3026]
[1727145107227,3.4388,145.41,145.38,3.4392]
[1727145107423,0.979945,145.45,145.36,14.89]
[1727145108020,3.4382,145.43,145.4,3.4388]
[1727145110129,0.979945,145.45,145.36,14.89]
[1727145110734,3.4384,145.43,145.39,3.4389]
[1727145112728,3.4386,145.42,145.38,3.4393]
[1727145112928,14.89,145.44,145.38,3.4393]
[1727145113329,3.4388,145.41,145.38,3.4393]
[1727145113927,3.4388,145.41,145.37,3.4395]
[1727145114535,3.4388,145.41,145.38,3.4393]
[1727145114936,3.439,145.4,145.35,1.3026]
[1727145115136,3.45674919,145.39,145.35,3.44]
[1727145115438,14.89,145.42,145.35,3.44]
[1727145115629,1.422,145.41,145.36,3.4398]
[1727145115834,1.422,145.41,145.32,14.89]
[1727145116033,3.4393,145.39,145.32,14.89]
[1727145116230,6.94139953,145.39,145.35,3.4401]
[1727145116739,6.94139953,145.39,145.31,93.39518472]
[1727145116740,14.89,145.38,145.31,93.39518472]
[1727145116942,14.89,145.38,145.33,3.4404]
[1727145117335,18.3296,145.38,145.33,3.4404]
[1727145117537,3.40848075,145.37,145.33,3.4404]
[1727145118039,3.40848075,145.37,145.32,3.4407]
[1727145118233,14.89,145.38,145.3,2.6595]
[1727145118429,3.4401,145.35,145.3,2.6595]
[1727145118636,3.4401,145.35,145.31,3.4409]
[1727145118837,14.89,145.36,145.3,1.3031]
[1727145119140,14.89,145.36,145.27,16.2118]
[1727145119341,1.4263,145.35,145.28,3.4416]
[1727145119544,1.4263,145.35,145.27,16.2118]
[1727145119729,14.89,145.34,145.25,16.2314]
[1727145120330,1.4263,145.35,145.25,1.3414]
[1727145120331,14.89,145.32,145.25,1.3414]
[1727145120532,14.89,145.3,145.23,1.3218]
[1727145121137,1.4263,145.35,145.25,14.89]
[1727145121336,14.89,145.34,145.25,14.89]
[1727145121738,1.4263,145.35,145.25,14.89]
[1727145122038,16.3163,145.35,145.25,14.89]
[1727145122238,19.7565,145.35,145.3,3.4411]
[1727145122447,19.7565,145.35,145.27,14.89]
[1727145122632,4.8665,145.35,145.28,14.89]
[1727145122835,4.8665,145.35,145.3,3.441]
[1727145123143,1.4263,145.35,145.26,14.89]
[1727145124035,4.8665,145.35,145.31,3.4409]
[1727145124443,1.4263,145.35,145.27,16.2824]
[1727145124636,3.4405,145.34,145.27,16.2824]
[1727145125642,3.4405,145.34,145.3,3.4411]
[1727145126540,3.4406,145.33,145.3,3.4411]
[1727145126733,3.36374277,145.36,145.32,3.4407]
[1727145126935,14.89,145.4,145.31,14.89]
[1727145127441,3.4398,145.37,145.33,3.4405]
[1727145127639,14.89,145.4,145.31,14.89]
[1727145129645,3.4399,145.36,145.32,3.4406]
[1727145130749,14.89,145.36,145.29,1.3181]
[1727145130947,14.89,145.34,145.29,1.3181]
[1727145131135,3.46381808,145.37,145.27,16.2824]
[1727145131136,16.2286,145.36,145.27,16.2824]
[1727145131444,3.4402,145.35,145.31,3.441]
[1727145131644,6.93318113,145.35,145.31,3.441]
[1727145131844,3.4397,145.37,145.31,14.89]
[1727145132042,3.39828773,145.38,145.31,14.89]
[1727145132249,3.4399,145.36,145.31,14.89]
[1727145133446,18.33993867,145.37,145.29,14.89]
[1727145133652,14.89,145.37,145.27,16.2824]
[1727145134354,3.4404,145.34,145.31,3.441]
[1727145134852,14.89,145.35,145.27,16.2824]
[1727145135244,3.4407,145.33,145.29,3.4413]
[1727145135655,3.4407,145.33,145.27,16.2824]
[1727145136549,3.4409,145.32,145.29,3.4414]
[1727145136850,16.2793,145.35,145.25,14.89]
[1727145137153,3.4407,145.33,145.27,14.89]
[1727145137450,3.4401,145.35,145.28,14.89]
[1727145137845,3.4401,145.35,145.31,3.4409]
[1727145138053,3.4405,145.34,145.31,3.4409]
[1727145138354,3.38806858,145.35,145.28,14.89]
[1727145138655,3.4404,145.34,145.28,14.89]
[1727145138951,3.4404,145.34,145.3,3.4411]
[1727145139254,3.4404,145.34,145.28,14.89]
[1727145140157,3.4404,145.34,145.3,3.4411]
[1727145140358,3.4404,145.34,145.28,14.89]
[1727145140553,3.4404,145.34,145.3,3.4411]
[1727145140755,3.4404,145.34,145.28,14.89]
[1727145141252,3.4404,145.34,145.3,3.4411]
[1727145141957,3.4406,145.33,145.3,3.4411]
[1727145142155,3.38806858,145.35,145.31,3.441]
[1727145142350,16.3107,145.36,145.31,3.441]
[1727145142747,3.4405,145.34,145.31,3.441]
[1727145142952,16.3107,145.36,145.26,1.3662]
[1727145142953,14.89,145.32,145.26,1.3662]
[1727145143159,14.89,145.3,145.24,1.4378]
[1727145143352,3.4417,145.29,145.24,1.4378]
[1727145144659,2.7933,145.35,145.25,14.89]
[1727145144853,17.6833,145.35,145.25,14.89]
[1727145145354,3.4408,145.32,145.25,14.89]
[1727145145556,3.4408,145.32,145.17,1.3367]
[1727145145557,14.89,145.27,145.18,1.3318]
[1727145145861,18.29956054,145.27,145.19,14.89]
[1727145146261,3.40956054,145.27,145.19,14.89]
[1727145146462,3.4422,145.27,145.19,14.89]
[1727145146652,3.50737016,145.27,145.19,14.89]
[1727145146853,3.4417,145.29,145.25,3.4425]
[1727145147156,14.89,145.31,145.25,3.4425]
[1727145148462,14.89,145.31,145.21,14.89]
[1727145149556,14.89,145.31,145.26,3.4421]
[1727145149557,3.4414,145.3,145.26,3.4421]
[1727145150854,3.4414,145.3,145.27,3.442]
[1727145151057,3.4411,145.31,145.25,14.89]
[1727145151456,14.89,145.33,145.28,3.4417]
[1727145151653,17.6833,145.35,145.25,14.89]
[1727145151960,1.43,145.35,145.27,14.89]
[1727145152557,16.32,145.35,145.26,2.7961]
[1727145152950,16.32,145.35,145.27,14.89]
[1727145153252,3.4406,145.33,145.29,3.4414]
[1727145155261,3.4406,145.33,145.27,14.89]
[1727145155458,1.43,145.35,145.27,14.89]
[1727145155855,3.4405,145.34,145.3,3.4411]
[1727145156261,1.43,145.35,145.3,3.4411]
[1727145156456,3.4407,145.33,145.29,3.4414]
[1727145158357,3.4407,145.33,145.26,2.7961]
[1727145158358,3.4407,145.33,145.3,3.4412]
[1727145159861,3.4407,145.33,145.29,3.4415]
[1727145161465,3.4404,145.34,145.3,3.4412]
[1727145162168,3.4406,145.33,145.3,3.4412]
[1727145164164,16.32,145.35,145.26,2.7961]
[1727145164165,14.89,145.34,145.26,2.7961]
[1727145164467,14.89,145.3,145.22,1.4414]
[1727145165166,3.442,145.27,145.23,3.4429]
[1727145165368,3.39484433,145.27,145.2,2.6528]
[1727145165566,14.89,145.28,145.2,2.6528]
[1727145165765,3.4423,145.26,145.22,3.443]
[1727145165966,6.87674339,145.26,145.22,3.443]
[1727145166266,3.443,145.23,145.2,4.7665]
[1727145166578,3.443,145.23,145.2,3.4435]
[1727145166969,3.4428,145.24,145.2,3.4435]
[1727145167169,3.4428,145.24,145.21,3.4434]
[1727145167471,3.4428,145.24,145.15,18.41879245]
[1727145167878,14.89,145.24,145.15,14.89]
[1727145168075,14.89,145.24,145.15,18.25180517]
[1727145168266,3.443,145.23,145.19,3.4437]
[1727145168964,18.32444339,145.26,145.17,14.89]
[1727145169171,3.4427,145.24,145.21,3.4434]
[1727145171081,14.89,145.24,145.18,1.3961]
[1727145171467,3.4433,145.22,145.19,3.4439]
[1727145171676,14.89,145.24,145.18,1.3961]
[1727145171870,3.45138899,145.25,145.18,1.3961]
[1727145172071,3.4428,145.24,145.2,3.4436]
[1727145172275,18.39985391,145.26,145.18,1.3961]
[1727145172679,3.4429,145.24,145.2,3.4435]
[1727145174468,3.4425,145.25,145.18,1.3961]
[1727145174669,18.39985391,145.26,145.18,1.3961]
[1727145174971,3.4428,145.24,145.18,1.3961]
[1727145175780,3.4428,145.24,145.21,3.4433]
[1727145177779,1.4176,145.28,145.19,14.89]
[1727145177976,4.85303171,145.28,145.2,1.3305]
[1727145178176,3.43543171,145.28,145.2,1.3305]
[1727145178680,1.3006,145.29,145.22,14.89]
[1727145179376,4.7423,145.29,145.22,14.89]
[1727145180267,6.92220586,145.28,145.22,14.89]
[1727145180783,6.92220586,145.28,145.24,3.4426]
[1727145181587,6.94080661,145.28,145.25,3.4424]
[1727145181880,3.4418,145.28,145.25,3.4424]
[1727145182379,6.83333564,145.28,145.25,3.4424]
[1727145184283,14.89,145.3,145.26,3.442]
[1727145184880,14.89,145.27,145.09,6.8923]
[1727145185180,14.89,145.27,145.16,16.2182]
[1727145185181,14.89,145.25,145.16,16.2182]
[1727145185373,14.89,145.25,145.2,3.4434]
[1727145185374,3.4427,145.24,145.2,3.4434]
[1727145185573,18.31839267,145.27,145.18,14.89]
[1727145185771,1.3981,145.28,145.19,14.89]
[1727145185977,14.89,145.31,145.22,14.89]
[1727145186471,14.89,145.31,145.26,3.4422]
[1727145187171,2.7849,145.35,145.24,14.89]
[1727145187371,2.7849,145.35,145.26,14.89]
[1727145187584,2.7849,145.35,145.27,14.89]
[1727145187585,1.3981,145.35,145.27,14.89]
[1727145187881,1.3981,145.35,145.27,17.5836]
[1727145188583,16.2881,145.35,145.27,2.6936]
[1727145188876,16.2881,145.35,145.25,14.89]
[1727145188877,14.89,145.31,145.23,1.364]
[1727145189677,3.4416,145.29,145.25,3.4423]
[1727145190674,3.4416,145.29,145.26,3.4422]
[1727145190879,14.89,145.31,145.23,1.364]
[1727145191382,14.89,145.31,145.24,14.89]
[1727145191980,3.4411,145.31,145.27,3.4418]
[1727145192773,3.4411,145.31,145.28,3.4417]
[1727145194086,3.4413,145.3,145.26,3.442]
[1727145194388,3.4413,145.3,145.24,14.89]
[1727145194585,3.4413,145.3,145.26,3.442]
[1727145194777,14.89,145.33,145.24,14.89]
[1727145195584,3.4412,145.31,145.28,3.4416]
[1727145195790,3.4412,145.31,145.24,14.89]
[1727145195791,14.89,145.34,145.25,14.89]
[1727145196092,14.89,145.34,145.25,16.2281]
[1727145196783,3.4407,145.33,145.25,16.2281]
[1727145197689,3.4407,145.33,145.3,3.4413]
[1727145198883,3.48150953,145.36,145.27,14.89]
[1727145199083,3.44925,145.39,145.31,14.89]
[1727145199287,14.89,145.4,145.31,14.89]
[1727145199485,6.95767228,145.38,145.34,3.4402]
[1727145199691,3.4396,145.38,145.34,3.4402]
[1727145199991,18.30101549,145.38,145.29,16.2345]
[1727145200187,3.41101549,145.38,145.29,16.2345]
[1727145200381,14.89,145.38,145.29,16.2345]
[1727145200581,18.35437177,145.38,145.29,16.2345]
[1727145200888,21.79397177,145.38,145.29,16.2345]
[1727145201288,21.79397177,145.38,145.34,3.4401]
[1727145201495,18.3296,145.38,145.34,3.4401]
[1727145202100,3.4396,145.38,145.35,3.44]
[1727145202888,3.42444061,145.39,145.34,3.4402]
[1727145202889,3.4397,145.37,145.34,3.4402]
[1727145203591,3.4397,145.37,145.35,3.4401]
[1727145204891,3.4395,145.38,145.35,3.4401]
[1727145205999,18.9723,145.42,145.33,14.89]
[1727145206490,14.89,145.4,145.31,14.89]
[1727145206898,3.4395,145.38,145.35,3.4401]
[1727145207099,6.8845949,145.38,145.35,3.4401]
[1727145207296,3.4395,145.38,145.35,3.4401]
[1727145207498,6.88149648,145.38,145.35,3.4401]
[1727145207694,3.4395,145.38,145.35,3.4401]
[1727145208194,6.95620275,145.38,145.35,3.4401]
[1727145208396,9.52,145.37,145.35,3.4401]
[1727145209092,3.4392,145.39,145.36,3.4399]
[1727145209295,9.52,145.38,145.36,3.4399]
[1727145209499,9.52,145.38,145.34,9.52]
[1727145209696,9.52,145.38,145.36,3.4397]
[1727145209898,9.52,145.38,145.34,9.52]
[1727145210293,9.52,145.38,145.37,3.4396]
[1727145210989,9.52,145.38,145.29,1.3445]
[1727145211195,9.52,145.34,145.29,10.8645]
[1727145211494,9.52,145.34,145.32,3.4406]
[1727145211697,9.52,145.34,145.29,10.8645]
[1727145211893,16.34471489,145.36,145.31,9.52]
[1727145212100,9.52,145.36,145.34,3.4402]
[1727145212292,14.88,145.39,145.3,14.88]
[1727145212489,3.38450364,145.38,145.3,14.88]
[1727145212693,6.82390364,145.38,145.35,3.44]
[1727145216297,3.4394,145.38,145.35,3.44]
[1727145218601,6.81211057,145.39,145.35,3.44]
[1727145219112,6.81211057,145.39,145.36,3.4398]
[1727145219700,6.81211057,145.39,145.3,14.88]
[1727145219701,3.439,145.4,145.37,3.4396]
[1727145219999,3.39907317,145.39,145.31,1.4406]
[1727145220201,14.88,145.41,145.31,1.4406]
[1727145220402,3.4392,145.39,145.31,1.4406]
[1727145220606,3.49098654,145.39,145.31,1.4406]
[1727145220807,14.88,145.39,145.31,1.4406]
[1727145221004,18.33897177,145.39,145.31,1.4406]
[1727145221211,3.4399,145.36,145.33,3.4404]
[1727145222711,14.88,145.35,145.29,1.3445]
[1727145222915,3.45897177,145.39,145.25,1.4082]
[1727145222916,14.88,145.33,145.25,1.4082]
[1727145223115,14.88,145.31,145.25,1.4082]
[1727145223418,14.88,145.31,145.26,3.4421]
[1727145223419,3.4413,145.3,145.26,3.4421]
[1727145226206,3.4415,145.29,145.21,1.3009]
[1727145226413,3.4415,145.29,145.22,14.88]
[1727145227215,14.88,145.31,145.22,14.88]
[1727145227518,14.88,145.27,145.19,1.3742]
[1727145229609,3.4423,145.26,145.19,1.3742]
[1727145230918,14.88,145.27,145.19,1.3742]
[1727145231817,14.88,145.25,145.17,1.3063]
[1727145232005,3.37260575,145.24,145.17,1.3063]
[1727145232213,3.4423,145.26,145.23,3.4428]
[1727145234318,3.4423,145.26,145.17,1.3063]
[1727145234319,21.73024424,145.25,145.22,3.4431]
[1727145234620,14.88,145.23,145.17,1.3063]
[1727145234922,18.323,145.23,145.19,3.4437]
[1727145235123,18.323,145.23,145.17,1.3063]
[1727145235324,21.75085281,145.23,145.17,1.3063]
[1727145235625,21.75085281,145.23,145.2,3.4435]
[1727145236223,14.88,145.25,145.21,3.4433]
[1727145236422,3.44335722,145.24,145.21,3.4433]
[1727145237122,6.88605722,145.24,145.21,3.4433]
[1727145237418,14.88,145.25,145.21,3.4433]
[1727145238017,3.43302094,145.24,145.21,3.4433]
[1727145239527,14.88,145.23,145.17,1.3063]
[1727145239825,18.29499552,145.23,145.17,1.3063]
[1727145240214,21.73799552,145.23,145.17,1.3063]
[1727145240527,18.323,145.23,145.17,1.3063]
[1727145240824,21.74695424,145.23,145.2,3.4435]
[1727145242114,18.323,145.23,145.2,3.4435]
[1727145246629,29.76,145.21,145.1,1.3289]
[1727145246822,1.3934,145.23,145.1,1.3289]
[1727145246823,14.88,145.14,145.1,1.3289]
[1727145247022,14.88,145.14,145.05,20.96124697]
[1727145247023,14.88,145.14,145.11,3.4456]
[1727145247420,14.88,145.14,145.06,2.6899]
[1727145247621,14.88,145.13,145.06,2.6899]
[1727145248330,18.27228513,145.13,145.06,2.6899]
[1727145248930,18.27228513,145.13,144.99,319.5772]
[1727145248931,14.88,145.08,144.99,82.68]
[1727145249224,14.88,145.04,144.93,14.88]
[1727145249431,14.88,145.02,144.93,14.88]
[1727145249624,14.88,145.02,144.93,18.3333173]
[1727145249822,14.88,145.04,144.95,14.88]
[1727145250023,14.88,145.06,144.97,14.88]
[1727145250624,14.88,145.02,144.92,6.07705838]
[1727145250830,14.88,145.0,144.92,6.08382994]
[1727145251131,14.88,145.04,144.93,14.88]
[1727145251331,3.43409247,145.03,144.99,3.4484]
[1727145251837,14.88,145.02,144.92,6.08382994]
[1727145252020,14.88,145.02,144.94,14.88]
[1727145252731,14.88,145.04,144.94,14.88]
[1727145253626,3.43271221,145.03,144.94,14.88]
[1727145254025,14.88,145.04,144.94,14.88]
[1727145254225,1.4119,145.05,144.95,14.88]
[1727145254522,1.4119,145.05,144.96,1.3411]
[1727145255629,1.4119,145.05,145.01,3.448]
[1727145255831,1.4119,145.05,144.96,1.3411]
[1727145256032,18.327,145.06,144.96,1.3411]
[1727145256239,14.88,145.06,145.03,3.4475]
[1727145258433,18.3265,145.08,144.97,14.88]
[1727145259130,14.88,145.08,145.05,3.4472]
[1727145259437,14.88,145.08,144.97,14.88]
[1727145259834,18.3265,145.08,145.04,3.4473]
[1727145260525,3.4468,145.07,145.04,3.4473]
[1727145260725,3.4468,145.07,145.03,3.4475]
[1727145263235,14.88,145.08,145.05,3.4472]
[1727145264537,14.88,145.08,145.06,3.4469]
[1727145265034,14.88,145.08,145.05,3.4472]
[1727145265235,18.3265,145.08,145.05,3.4472]
[1727145266937,14.88,145.08,145.06,3.4468]
[1727145267330,16.1962,145.1,145.06,3.4468]
[1727145267533,16.1962,145.1,145.01,18.39845463]
[1727145267733,16.1962,145.1,145.01,14.88]
[1727145268238,16.1962,145.1,145.07,3.4466]
[1727145269337,14.88,145.1,145.08,3.4464]
[1727145271042,14.88,145.1,145.07,3.4466]
[1727145271840,14.88,145.1,145.08,3.4465]
[1727145273034,1.3002,145.12,145.04,14.88]
[1727145273237,1.4399,145.15,145.06,14.88]
[1727145273238,3.37046489,145.14,145.06,14.88]
[1727145273537,3.4454,145.13,145.06,14.88]
[1727145273734,6.87688579,145.13,145.06,14.88]
[1727145274651,6.87688579,145.13,145.1,3.4459]
[1727145274845,16.3199,145.15,145.06,14.88]
[1727145275257,3.4454,145.13,145.1,3.4459]
[1727145275552,6.82274618,145.13,145.1,3.4459]
[1727145276653,3.4454,145.13,145.1,3.4459]
[1727145276955,6.83550519,145.13,145.1,3.4459]
[1727145277142,19.76701074,145.15,145.06,14.88]
[1727145277546,3.4451,145.14,145.11,3.4457]
[1727145278344,3.4454,145.13,145.1,3.446]
[1727145279974,3.4454,145.13,145.11,3.4458]
[1727145280460,3.4452,145.14,145.11,3.4458]
[1727145280647,19.76701074,145.15,145.12,3.4455]
[1727145281258,23.21201074,145.15,145.12,3.4455]
[1727145286765,3.4452,145.14,145.11,3.4457]
[1727145287359,3.4453,145.13,145.1,3.446]
[1727145287861,3.4453,145.13,145.07,3.4466]
[1727145287862,3.4459,145.11,145.07,3.4466]
[1727145288263,14.88,145.11,145.07,3.4466]
[1727145288466,14.88,145.11,145.0,3.37090663]
[1727145288653,14.88,145.07,145.0,4.0837]
[1727145288854,3.39814697,145.06,145.0,4.0837]
[1727145289058,6.84534697,145.06,145.0,4.0837]
[1727145289258,14.88,145.03,144.92,3.39262994]
[1727145289564,18.3282,145.01,144.97,3.449]
[1727145289756,14.88,145.01,144.93,1.3141]
[1727145289965,14.88,145.04,144.93,1.3141]
[1727145289966,14.88,144.99,144.93,1.3141]
[1727145291567,14.88,145.0,144.93,1.3141]
[1727145291770,14.88,145.0,144.97,3.4489]
[1727145293359,14.88,144.98,144.91,93.64113139]
[1727145294863,14.88,144.98,144.96,3.4492]
[1727145296165,14.88,144.98,144.94,3.4497]
[1727145296468,18.329,144.98,144.94,3.4497]
[1727145296864,14.88,145.0,144.91,93.64113139]
[1727145297064,14.88,145.0,144.91,108.52113139]
[1727145297462,14.88,144.96,144.91,93.64113139]
[1727145297973,14.88,144.96,144.94,3.4497]
[1727145300064,14.88,144.98,144.91,93.64113139]
[1727145301466,14.88,144.98,144.95,3.4494]
[1727145301676,14.88,144.98,144.91,93.64113139]
[1727145302069,14.88,145.0,144.91,93.64113139]
[1727145302475,4.1801,145.02,144.92,14.88]
[1727145302476,16.2868,145.02,144.92,14.88]
[1727145302866,16.2868,145.02,144.98,3.4487]
[1727145303373,19.735,145.02,144.98,3.4487]
[1727145303573,16.2868,145.02,144.98,3.4487]
[1727145303976,3.4482,145.01,144.98,3.4487]
[1727145304377,16.2868,145.02,144.99,3.4486]
[1727145304578,16.2868,145.02,144.92,14.88]
[1727145304579,14.88,145.03,144.94,14.88]
[1727145304771,14.88,145.03,144.95,4.0081]
[1727145304973,14.88,145.03,145.01,3.448]
[1727145305676,14.88,145.05,144.96,14.88]
[1727145305885,18.34666206,145.05,144.96,14.88]
[1727145306273,14.88,145.05,144.96,14.88]
[1727145306474,14.88,145.05,145.03,3.4476]